[Event "*** Titled Tuesday Blitz"]
[Site "Chess.com"]
[Date "2019.06.04"]
[Round "1"]
[White "fm_magua"]
[Black "rasmussvane"]
[Result "0-1"]
[WhiteElo "2464"]
[BlackElo "2881"]
[TimeControl "180+2"]
[EndTime "13:06:01 PDT"]
[Termination "rasmussvane won by resignation"]

1. e4 {[%clk 0:03:00.9]} 1... c6 {[%clk 0:03:01.2]} 2. d4 {[%clk 0:03:01.4]}
2... d5 {[%clk 0:03:02.9]} 3. e5 {[%clk 0:03:02.8]} 3... Bf5 {[%clk 0:03:03.6]}
4. h4 {[%clk 0:03:03.7]} 4... h5 {[%clk 0:03:03.8]} 5. c4 {[%clk 0:03:04.4]}
5... e6 {[%clk 0:03:04.6]} 6. Bg5 {[%clk 0:03:05.4]} 6... Qb6 {[%clk 0:03:04.5]}
7. Qd2 {[%clk 0:03:04.6]} 7... dxc4 {[%clk 0:02:54.8]} 8. Nc3 {[%clk 0:03:05.4]}
8... Qa6 {[%clk 0:02:52.5]} 9. Nge2 {[%clk 0:03:02.8]} 9... Nd7 {[%clk
0:02:49.6]} 10. Ng3 {[%clk 0:03:03.7]} 10... Bd3 {[%clk 0:02:49.1]} 11. Bxd3
{[%clk 0:03:01.3]} 11... cxd3 {[%clk 0:02:51]} 12. O-O {[%clk 0:03:02.4]} 12...
f6 {[%clk 0:02:46.6]} 13. Bf4 {[%clk 0:03:00.5]} 13... O-O-O {[%clk 0:02:45.6]}
14. Nge4 {[%clk 0:02:59.7]} 14... Nb6 {[%clk 0:02:36.8]} 15. Nc5 {[%clk
0:02:52.8]} 15... Bxc5 {[%clk 0:02:33.1]} 16. dxc5 {[%clk 0:02:54.7]} 16... Nc4
{[%clk 0:02:34.6]} 17. Qc1 {[%clk 0:02:50.7]} 17... fxe5 {[%clk 0:02:29.1]} 18.
Bg5 {[%clk 0:02:50.9]} 18... Nf6 {[%clk 0:02:30.7]} 19. Bxf6 {[%clk 0:02:50.9]}
19... gxf6 {[%clk 0:02:30.5]} 20. Ne4 {[%clk 0:02:52.8]} 20... f5 {[%clk
0:02:22.7]} 21. Ng5 {[%clk 0:02:53.5]} 21... Rd7 {[%clk 0:02:02.7]} 22. b3
{[%clk 0:02:52.6]} 22... Na3 {[%clk 0:02:00.8]} 23. Qb2 {[%clk 0:02:43.5]} 23...
Rd5 {[%clk 0:01:57.7]} 24. f4 {[%clk 0:02:28.9]} 24... Re8 {[%clk 0:01:53.1]}
25. fxe5 {[%clk 0:02:28.7]} 25... Nc2 {[%clk 0:01:48]} 26. Rac1 {[%clk
0:02:19.7]} 26... Ne3 {[%clk 0:01:48.3]} 27. Rfe1 {[%clk 0:02:15.9]} 27... d2
{[%clk 0:01:43.7]} 28. Rxe3 {[%clk 0:02:17]} 28... d1=Q+ {[%clk 0:01:45.1]} 29.
Rxd1 {[%clk 0:02:17.6]} 29... Rxd1+ {[%clk 0:01:47]} 30. Kh2 {[%clk 0:02:18.9]}
30... Qf1 {[%clk 0:01:46.8]} 31. Rf3 {[%clk 0:02:11.4]} 31... Qg1+ {[%clk
0:01:40.8]} 32. Kg3 {[%clk 0:02:10.8]} 32... Rd4 {[%clk 0:01:41.6]} 33. Rf4
{[%clk 0:01:49.3]} 33... Qe3+ {[%clk 0:01:19.1]} 34. Rf3 {[%clk 0:01:48.7]}
34... Rg4+ {[%clk 0:01:09.4]} 35. Kh3 {[%clk 0:01:45.6]} 35... Qe1 {[%clk
0:00:58.7]} 0-1

[Event "*** Titled Tuesday Blitz"]
[Site "Chess.com"]
[Date "2019.06.04"]
[Round "1"]
[White "Gabix_94"]
[Black "toog"]
[Result "1-0"]
[WhiteElo "2652"]
[BlackElo "2309"]
[TimeControl "180+2"]
[EndTime "13:06:05 PDT"]
[Termination "Gabix_94 won by resignation"]

1. Nf3 {[%clk 0:03:00.6]} 1... Nf6 {[%clk 0:02:56.3]} 2. c4 {[%clk 0:03:01]}
2... g6 {[%clk 0:02:57.4]} 3. Nc3 {[%clk 0:03:00.3]} 3... Bg7 {[%clk 0:02:58.6]}
4. d4 {[%clk 0:03:00.9]} 4... O-O {[%clk 0:02:59.9]} 5. e4 {[%clk 0:03:01.7]}
5... d6 {[%clk 0:03:01.5]} 6. h3 {[%clk 0:03:02.7]} 6... e5 {[%clk 0:03:01.6]}
7. d5 {[%clk 0:03:03.2]} 7... a5 {[%clk 0:03:01.7]} 8. Be2 {[%clk 0:03:02.9]}
8... Na6 {[%clk 0:03:01.8]} 9. g4 {[%clk 0:03:01.4]} 9... Nc5 {[%clk 0:03:01.2]}
10. Qc2 {[%clk 0:03:02.5]} 10... Ne8 {[%clk 0:02:48.4]} 11. Bg5 {[%clk
0:03:03.1]} 11... f6 {[%clk 0:02:46.6]} 12. Be3 {[%clk 0:03:04.5]} 12... b6
{[%clk 0:02:46.8]} 13. Rg1 {[%clk 0:03:03.8]} 13... Kh8 {[%clk 0:02:46.6]} 14.
O-O-O {[%clk 0:03:02.7]} 14... f5 {[%clk 0:02:43.8]} 15. gxf5 {[%clk 0:03:03.6]}
15... gxf5 {[%clk 0:02:45.7]} 16. exf5 {[%clk 0:02:57.5]} 16... Bxf5 {[%clk
0:02:45.9]} 17. Qd2 {[%clk 0:02:51.8]} 17... Rg8 {[%clk 0:02:35.5]} 18. Ng5
{[%clk 0:02:50]} 18... Qe7 {[%clk 0:02:27.8]} 19. Bxc5 {[%clk 0:02:49.7]} 19...
bxc5 {[%clk 0:02:27.1]} 20. h4 {[%clk 0:02:48]} 20... Nf6 {[%clk 0:02:23.1]} 21.
Bd3 {[%clk 0:02:48]} 21... Bxd3 {[%clk 0:01:50.9]} 22. Qxd3 {[%clk 0:02:49.9]}
22... Bh6 {[%clk 0:01:52.4]} 23. Kb1 {[%clk 0:02:47.9]} 23... Bxg5 {[%clk
0:01:50.4]} 24. hxg5 {[%clk 0:02:49.8]} 24... Nh5 {[%clk 0:01:51]} 25. Ne4
{[%clk 0:02:48.4]} 25... Nf4 {[%clk 0:01:51.5]} 26. Qc2 {[%clk 0:02:48.8]} 26...
Rab8 {[%clk 0:01:50.8]} 27. Ka1 {[%clk 0:02:48.3]} 27... a4 {[%clk 0:01:32.6]}
28. Rh1 {[%clk 0:02:48.7]} 28... a3 {[%clk 0:01:29.2]} 29. b3 {[%clk 0:02:47.5]}
29... Rg7 {[%clk 0:01:21.7]} 30. Rh2 {[%clk 0:02:47.2]} 30... Qf7 {[%clk
0:01:12.9]} 31. Nf6 {[%clk 0:02:43.7]} 31... Qg6 {[%clk 0:01:10.9]} 32. Qxg6
{[%clk 0:02:43.3]} 32... Nxg6 {[%clk 0:01:12.8]} 33. Rdh1 {[%clk 0:02:43.4]}
33... Nf8 {[%clk 0:01:13.6]} 34. Kb1 {[%clk 0:02:43.4]} 34... Rf7 {[%clk
0:00:51.1]} 35. Kc2 {[%clk 0:02:40.9]} 35... Kg7 {[%clk 0:00:36.1]} 36. Rh6
{[%clk 0:02:36.3]} 36... Rd8 {[%clk 0:00:27]} 37. Kd3 {[%clk 0:02:35.8]} 37...
Re7 {[%clk 0:00:22.4]} 38. Ke4 {[%clk 0:02:34.2]} 1-0

[Event "*** Titled Tuesday Blitz"]
[Site "Chess.com"]
[Date "2019.06.04"]
[Round "1"]
[White "iturrizaga"]
[Black "Koksal06"]
[Result "1-0"]
[WhiteElo "2930"]
[BlackElo "2486"]
[TimeControl "180+2"]
[EndTime "13:06:06 PDT"]
[Termination "iturrizaga won by checkmate"]

1. Nf3 {[%clk 0:03:00.9]} 1... d5 {[%clk 0:02:59.5]} 2. g3 {[%clk 0:03:02.6]}
2... Nf6 {[%clk 0:02:56]} 3. Bg2 {[%clk 0:03:03.7]} 3... Bg4 {[%clk 0:02:55.7]}
4. O-O {[%clk 0:03:04.9]} 4... c6 {[%clk 0:02:55.1]} 5. b3 {[%clk 0:03:06.3]}
5... e6 {[%clk 0:02:54.9]} 6. Bb2 {[%clk 0:03:07.8]} 6... Nbd7 {[%clk
0:02:56.2]} 7. d3 {[%clk 0:03:08.5]} 7... Bd6 {[%clk 0:02:53.5]} 8. Nbd2 {[%clk
0:03:09.7]} 8... O-O {[%clk 0:02:54.4]} 9. h3 {[%clk 0:03:09.4]} 9... Bh5 {[%clk
0:02:54.9]} 10. a3 {[%clk 0:03:10.9]} 10... Qe7 {[%clk 0:02:55.3]} 11. c4 {[%clk
0:03:11.4]} 11... e5 {[%clk 0:02:48.2]} 12. Qc2 {[%clk 0:03:11.9]} 12... Bg6
{[%clk 0:02:34.7]} 13. e4 {[%clk 0:03:09.4]} 13... dxe4 {[%clk 0:02:32.3]} 14.
dxe4 {[%clk 0:03:08.3]} 14... a5 {[%clk 0:01:46.4]} 15. Nh4 {[%clk 0:03:05.3]}
15... Rfe8 {[%clk 0:01:31]} 16. Kh2 {[%clk 0:03:04.5]} 16... Nf8 {[%clk
0:01:30.7]} 17. Rfe1 {[%clk 0:03:01.3]} 17... Bc5 {[%clk 0:01:27.9]} 18. Ndf3
{[%clk 0:02:59.7]} 18... N6d7 {[%clk 0:01:24.8]} 19. Nf5 {[%clk 0:03:00.1]}
19... Bxf5 {[%clk 0:01:00.5]} 20. exf5 {[%clk 0:03:02]} 20... f6 {[%clk
0:00:35.5]} 21. Re2 {[%clk 0:03:02.4]} 21... Rad8 {[%clk 0:00:35.8]} 22. Qc3
{[%clk 0:03:00.8]} 22... Bb6 {[%clk 0:00:33.3]} 23. b4 {[%clk 0:02:58.8]} 23...
axb4 {[%clk 0:00:35.2]} 24. axb4 {[%clk 0:03:00.7]} 24... Nb8 {[%clk 0:00:28.6]}
25. c5 {[%clk 0:02:58.5]} 25... Bc7 {[%clk 0:00:30.2]} 26. Nd2 {[%clk
0:02:59.4]} 26... Na6 {[%clk 0:00:24]} 27. Be4 {[%clk 0:02:38.9]} 27... Rd4
{[%clk 0:00:21.1]} 28. Qb3+ {[%clk 0:02:39.2]} 28... Kh8 {[%clk 0:00:21]} 29.
Bxd4 {[%clk 0:02:38]} 29... exd4 {[%clk 0:00:22.9]} 30. Bd3 {[%clk 0:02:39]}
30... Qd7 {[%clk 0:00:23.6]} 31. Rxe8 {[%clk 0:02:38.3]} 31... Qxe8 {[%clk
0:00:25.5]} 32. Nf3 {[%clk 0:02:33.4]} 32... Nd7 {[%clk 0:00:25.4]} 33. Bxa6
{[%clk 0:02:30.9]} 33... bxa6 {[%clk 0:00:27.3]} 34. Qe6 {[%clk 0:02:32.4]}
34... Qd8 {[%clk 0:00:27.5]} 35. Nxd4 {[%clk 0:02:29.7]} 35... Ne5 {[%clk
0:00:28.3]} 36. Nxc6 {[%clk 0:02:30]} 36... Qd2 {[%clk 0:00:29.2]} 37. Qe8#
{[%clk 0:02:29.5]} 1-0

[Event "*** Titled Tuesday Blitz"]
[Site "Chess.com"]
[Date "2019.06.04"]
[Round "1"]
[White "Caisachess"]
[Black "ChessWarrior7197"]
[Result "0-1"]
[WhiteElo "2453"]
[BlackElo "2873"]
[TimeControl "180+2"]
[EndTime "13:06:09 PDT"]
[Termination "ChessWarrior7197 won by resignation"]

1. e4 {[%clk 0:03:01.8]} 1... c5 {[%clk 0:03:00.3]} 2. c3 {[%clk 0:03:02.5]}
2... Nf6 {[%clk 0:02:59.4]} 3. e5 {[%clk 0:03:04]} 3... Nd5 {[%clk 0:03:00.3]}
4. d4 {[%clk 0:03:05.6]} 4... e6 {[%clk 0:02:57]} 5. Nf3 {[%clk 0:03:06.3]} 5...
d6 {[%clk 0:02:56.9]} 6. Bd3 {[%clk 0:03:04.4]} 6... Nc6 {[%clk 0:02:56.6]} 7.
a3 {[%clk 0:03:04.9]} 7... cxd4 {[%clk 0:02:56.5]} 8. cxd4 {[%clk 0:03:05.5]}
8... Be7 {[%clk 0:02:56.9]} 9. O-O {[%clk 0:03:06.5]} 9... h6 {[%clk 0:02:54.8]}
10. Qe2 {[%clk 0:03:06.6]} 10... b6 {[%clk 0:02:54.2]} 11. Re1 {[%clk
0:03:05.3]} 11... Bb7 {[%clk 0:02:50.8]} 12. Bd2 {[%clk 0:03:04.7]} 12... Qd7
{[%clk 0:02:32.1]} 13. Nc3 {[%clk 0:03:04.9]} 13... Nxc3 {[%clk 0:02:32.1]} 14.
Bxc3 {[%clk 0:03:05.7]} 14... O-O-O {[%clk 0:02:28.8]} 15. Ba6 {[%clk 0:03:04]}
15... Bxa6 {[%clk 0:02:28.1]} 16. Qxa6+ {[%clk 0:03:03.9]} 16... Qb7 {[%clk
0:02:30]} 17. Qxb7+ {[%clk 0:03:03.6]} 17... Kxb7 {[%clk 0:02:30.1]} 18. Rad1
{[%clk 0:03:00.1]} 18... dxe5 {[%clk 0:02:27.1]} 19. dxe5 {[%clk 0:02:53.6]}
19... b5 {[%clk 0:02:25.9]} 20. Kf1 {[%clk 0:02:48]} 20... a5 {[%clk 0:02:26.3]}
21. Nd4 {[%clk 0:02:41.7]} 21... Nxd4 {[%clk 0:02:18.7]} 22. Bxd4 {[%clk
0:02:41.2]} 22... b4 {[%clk 0:02:10.6]} 23. a4 {[%clk 0:02:38.7]} 23... Rd5
{[%clk 0:02:10.2]} 24. Be3 {[%clk 0:02:26]} 24... Rhd8 {[%clk 0:02:10.6]} 25.
Rxd5 {[%clk 0:02:23.2]} 25... Rxd5 {[%clk 0:02:10.3]} 26. f4 {[%clk 0:02:23.9]}
26... f6 {[%clk 0:02:09.8]} 27. exf6 {[%clk 0:02:12.5]} 27... Bxf6 {[%clk
0:02:09.6]} 28. Bc1 {[%clk 0:02:14.1]} 28... Rc5 {[%clk 0:02:09.4]} 29. Kf2
{[%clk 0:01:37.6]} 29... Rc2+ {[%clk 0:02:02]} 30. Kf3 {[%clk 0:01:37.7]} 30...
b3 {[%clk 0:01:59.6]} 31. g4 {[%clk 0:01:28.2]} 31... Bxb2 {[%clk 0:01:59.1]}
32. Bxb2 {[%clk 0:01:28.7]} 32... Rxb2 {[%clk 0:02:00.2]} 33. Rxe6 {[%clk
0:01:30.6]} 33... Rxh2 {[%clk 0:02:00]} 34. Re7+ {[%clk 0:01:31.3]} 34... Kb6
{[%clk 0:01:59.8]} 35. Re6+ {[%clk 0:01:29.8]} 35... Kc5 {[%clk 0:02:00]} 36.
Kg3 {[%clk 0:01:22.4]} 36... Rd2 {[%clk 0:01:53.6]} 37. f5 {[%clk 0:01:13.7]}
37... b2 {[%clk 0:01:53.2]} 38. Re1 {[%clk 0:01:14]} 38... Kb4 {[%clk
0:01:52.1]} 0-1

[Event "*** Titled Tuesday Blitz"]
[Site "Chess.com"]
[Date "2019.06.04"]
[Round "1"]
[White "26andrej26"]
[Black "SamCopeland"]
[Result "1-0"]
[WhiteElo "2528"]
[BlackElo "2087"]
[TimeControl "180+2"]
[EndTime "13:06:17 PDT"]
[Termination "26andrej26 won by resignation"]

1. e4 {[%clk 0:03:01.9]} 1... Nf6 {[%clk 0:02:57.7]} 2. Nc3 {[%clk 0:03:01.7]}
2... e5 {[%clk 0:02:58.2]} 3. f4 {[%clk 0:03:02.3]} 3... d5 {[%clk 0:02:58.4]}
4. exd5 {[%clk 0:02:55.8]} 4... exf4 {[%clk 0:02:55.7]} 5. Nf3 {[%clk
0:02:56.3]} 5... Nxd5 {[%clk 0:02:54.6]} 6. Bc4 {[%clk 0:02:52.8]} 6... Be6
{[%clk 0:02:41.3]} 7. Qe2 {[%clk 0:02:49.2]} 7... Nxc3 {[%clk 0:02:21]} 8. dxc3
{[%clk 0:02:49.5]} 8... Qe7 {[%clk 0:01:52.9]} 9. Bxe6 {[%clk 0:02:49.5]} 9...
Qxe6 {[%clk 0:01:54.8]} 10. Qxe6+ {[%clk 0:02:50.1]} 10... fxe6 {[%clk
0:01:56.7]} 11. Bxf4 {[%clk 0:02:51.6]} 11... Bd6 {[%clk 0:01:52.8]} 12. Be5
{[%clk 0:02:49.8]} 12... Nc6 {[%clk 0:01:41.4]} 13. Bxd6 {[%clk 0:02:50.1]}
13... cxd6 {[%clk 0:01:41.3]} 14. O-O-O {[%clk 0:02:52]} 14... Ke7 {[%clk
0:01:17.6]} 15. Rhe1 {[%clk 0:02:51.6]} 15... h6 {[%clk 0:01:10.1]} 16. Nh4
{[%clk 0:02:49.9]} 16... Rhe8 {[%clk 0:01:01.1]} 17. c4 {[%clk 0:02:47.9]} 17...
Ne5 {[%clk 0:00:55.5]} 18. c5 {[%clk 0:02:48.8]} 18... Nf7 {[%clk 0:00:43.5]}
19. Nf5+ {[%clk 0:02:46]} 19... Kf6 {[%clk 0:00:44.1]} 20. Nxd6 {[%clk
0:02:45.4]} 20... Nxd6 {[%clk 0:00:43.3]} 21. cxd6 {[%clk 0:02:44.4]} 21... Rad8
{[%clk 0:00:44.3]} 22. Rf1+ {[%clk 0:02:33.9]} 22... Kg6 {[%clk 0:00:41.6]} 23.
c4 {[%clk 0:02:30.3]} 23... b6 {[%clk 0:00:40.2]} 24. Kc2 {[%clk 0:02:28.6]}
24... e5 {[%clk 0:00:38.5]} 25. b4 {[%clk 0:02:28.8]} 25... Re6 {[%clk
0:00:32.8]} 26. c5 {[%clk 0:02:27.4]} 26... bxc5 {[%clk 0:00:32.6]} 27. bxc5
{[%clk 0:02:29.3]} 27... Rc8 {[%clk 0:00:33.8]} 28. Rd5 {[%clk 0:02:30.1]} 28...
e4 {[%clk 0:00:24.8]} 29. Kd2 {[%clk 0:02:31.2]} 29... e3+ {[%clk 0:00:24.1]}
30. Ke2 {[%clk 0:02:31.3]} 30... Rb8 {[%clk 0:00:24.3]} 31. d7 {[%clk
0:02:24.3]} 31... Rb2+ {[%clk 0:00:24.5]} 32. Kd3 {[%clk 0:02:25.9]} 32... e2
{[%clk 0:00:23.4]} 33. Re1 {[%clk 0:02:25.1]} 33... Rf6 {[%clk 0:00:14.3]} 34.
d8=Q {[%clk 0:02:24.1]} 34... Rf1 {[%clk 0:00:15.1]} 35. Qe8+ {[%clk 0:02:10.4]}
35... Kh7 {[%clk 0:00:14.6]} 36. Qe4+ {[%clk 0:02:11.4]} 1-0

[Event "*** Titled Tuesday Blitz"]
[Site "Chess.com"]
[Date "2019.06.04"]
[Round "1"]
[White "Cayse"]
[Black "kasparicy"]
[Result "0-1"]
[WhiteElo "2615"]
[BlackElo "2355"]
[TimeControl "180+2"]
[EndTime "13:06:28 PDT"]
[Termination "kasparicy won by resignation"]

1. d4 {[%clk 0:02:59.5]} 1... Nf6 {[%clk 0:02:55.1]} 2. Bf4 {[%clk 0:02:59]}
2... g6 {[%clk 0:02:43.7]} 3. Nc3 {[%clk 0:02:58.7]} 3... d5 {[%clk 0:02:43.5]}
4. e3 {[%clk 0:02:59.5]} 4... Bg7 {[%clk 0:02:43.3]} 5. h4 {[%clk 0:03:00.2]}
5... O-O {[%clk 0:02:45.2]} 6. Be2 {[%clk 0:02:49.1]} 6... c5 {[%clk 0:02:45.1]}
7. h5 {[%clk 0:02:44.1]} 7... Nc6 {[%clk 0:02:45.1]} 8. hxg6 {[%clk 0:02:42.9]}
8... fxg6 {[%clk 0:02:44.1]} 9. dxc5 {[%clk 0:02:41.3]} 9... e5 {[%clk
0:02:43.3]} 10. Bg5 {[%clk 0:02:42.4]} 10... Be6 {[%clk 0:02:43.3]} 11. Nf3
{[%clk 0:02:40]} 11... Qa5 {[%clk 0:02:40.3]} 12. O-O {[%clk 0:02:31.2]} 12...
Qxc5 {[%clk 0:02:39.2]} 13. a3 {[%clk 0:02:32.1]} 13... Rad8 {[%clk 0:02:23.5]}
14. Na4 {[%clk 0:02:31.1]} 14... Qe7 {[%clk 0:02:21.2]} 15. b4 {[%clk
0:02:31.8]} 15... h6 {[%clk 0:02:11.5]} 16. Bh4 {[%clk 0:02:20.8]} 16... g5
{[%clk 0:02:11.6]} 17. Bg3 {[%clk 0:02:21.9]} 17... Ne4 {[%clk 0:02:12.7]} 18.
Bh2 {[%clk 0:02:18.8]} 18... d4 {[%clk 0:02:01.2]} 19. exd4 {[%clk 0:02:15.4]}
19... exd4 {[%clk 0:02:03.1]} 20. Bd3 {[%clk 0:02:15.8]} 20... Nc3 {[%clk
0:01:49.8]} 21. Nxc3 {[%clk 0:02:16.1]} 21... dxc3 {[%clk 0:01:51.7]} 22. Qe2
{[%clk 0:02:12.6]} 22... Qf7 {[%clk 0:01:51.4]} 23. b5 {[%clk 0:02:07.9]} 23...
Nd4 {[%clk 0:01:44.3]} 24. Nxd4 {[%clk 0:02:08.7]} 24... Rxd4 {[%clk 0:01:45.6]}
25. Rae1 {[%clk 0:02:05.9]} 25... Bd7 {[%clk 0:01:35]} 26. Be5 {[%clk
0:02:04.3]} 26... Re8 {[%clk 0:01:27.7]} 27. Bxg7 {[%clk 0:01:58.1]} 27... Rxe2
{[%clk 0:01:28.1]} 28. Bxd4 {[%clk 0:01:59.6]} 28... Rxe1 {[%clk 0:01:29.2]} 29.
Rxe1 {[%clk 0:02:01.4]} 29... Qd5 {[%clk 0:01:27.4]} 30. Bxc3 {[%clk 0:01:59.8]}
30... Bxb5 {[%clk 0:01:27.2]} 31. Re5 {[%clk 0:01:42.4]} 31... Qc6 {[%clk
0:01:21.1]} 32. Rxb5 {[%clk 0:01:42.9]} 32... Qxc3 {[%clk 0:01:22.1]} 33. Rb3
{[%clk 0:01:34.1]} 33... Qe1+ {[%clk 0:01:21.3]} 34. Kh2 {[%clk 0:01:35.3]}
34... b6 {[%clk 0:01:20.4]} 35. f3 {[%clk 0:01:34]} 35... Kg7 {[%clk 0:01:20.6]}
36. Be4 {[%clk 0:01:33.2]} 36... g4 {[%clk 0:01:18.5]} 37. Rd3 {[%clk
0:01:31.5]} 37... Qh4+ {[%clk 0:01:19.2]} 38. Kg1 {[%clk 0:01:32.3]} 38... g3
{[%clk 0:01:21.1]} 39. f4 {[%clk 0:01:29.3]} 39... Qxf4 {[%clk 0:01:20.6]} 40.
Bf3 {[%clk 0:01:30.3]} 40... Qc1+ {[%clk 0:01:20.4]} 41. Rd1 {[%clk 0:01:29.9]}
41... Qxc2 {[%clk 0:01:20.5]} 0-1

[Event "*** Titled Tuesday Blitz"]
[Site "Chess.com"]
[Date "2019.06.04"]
[Round "1"]
[White "GMsKoRPioN"]
[Black "quesfr"]
[Result "1-0"]
[WhiteElo "2561"]
[BlackElo "2169"]
[TimeControl "180+2"]
[EndTime "13:06:38 PDT"]
[Termination "GMsKoRPioN won by resignation"]

1. d4 {[%clk 0:02:58.9]} 1... d5 {[%clk 0:02:59.8]} 2. c4 {[%clk 0:03:00.3]}
2... e6 {[%clk 0:03:00.7]} 3. Nf3 {[%clk 0:02:59.2]} 3... Nf6 {[%clk 0:03:01.5]}
4. Nc3 {[%clk 0:02:59.1]} 4... Be7 {[%clk 0:03:02.3]} 5. Bg5 {[%clk 0:02:59.7]}
5... Nbd7 {[%clk 0:03:02.1]} 6. e3 {[%clk 0:03:00.9]} 6... h6 {[%clk 0:03:01]}
7. Bh4 {[%clk 0:03:01.8]} 7... O-O {[%clk 0:02:56.5]} 8. Rc1 {[%clk 0:03:00.4]}
8... c5 {[%clk 0:02:55.8]} 9. cxd5 {[%clk 0:03:01.4]} 9... Nxd5 {[%clk
0:02:53.7]} 10. Bxe7 {[%clk 0:03:01.9]} 10... Nxe7 {[%clk 0:02:53.8]} 11. Be2
{[%clk 0:02:55.5]} 11... b6 {[%clk 0:02:49.7]} 12. O-O {[%clk 0:02:52.9]} 12...
Bb7 {[%clk 0:02:50.7]} 13. dxc5 {[%clk 0:02:53.7]} 13... Nxc5 {[%clk 0:02:50.7]}
14. b4 {[%clk 0:02:54.6]} 14... Ne4 {[%clk 0:02:29.3]} 15. Nxe4 {[%clk
0:02:54.1]} 15... Bxe4 {[%clk 0:02:30]} 16. Qa4 {[%clk 0:02:53.7]} 16... Nd5
{[%clk 0:02:09.9]} 17. b5 {[%clk 0:02:49.5]} 17... Bg6 {[%clk 0:01:33.1]} 18.
Ne5 {[%clk 0:02:33.3]} 18... Bh7 {[%clk 0:01:19]} 19. Bf3 {[%clk 0:02:24.1]}
19... Qd6 {[%clk 0:00:57.5]} 20. Nc6 {[%clk 0:02:14.8]} 20... Rfe8 {[%clk
0:00:35.7]} 21. Rfd1 {[%clk 0:02:15.6]} 21... a5 {[%clk 0:00:16.5]} 22. e4
{[%clk 0:02:08.6]} 22... Qf4 {[%clk 0:00:16.1]} 23. Qd4 {[%clk 0:02:02]} 23...
Nb4 {[%clk 0:00:10.6]} 24. a3 {[%clk 0:01:45.9]} 24... Nxc6 {[%clk 0:00:11.3]}
25. bxc6 {[%clk 0:01:46.7]} 25... b5 {[%clk 0:00:12.1]} 26. e5 {[%clk
0:01:44.2]} 26... Qxd4 {[%clk 0:00:11.6]} 27. Rxd4 {[%clk 0:01:45.4]} 27... Rec8
{[%clk 0:00:11.9]} 28. c7 {[%clk 0:01:42.8]} 1-0

[Event "*** Titled Tuesday Blitz"]
[Site "Chess.com"]
[Date "2019.06.04"]
[Round "1"]
[White "vohiraa"]
[Black "Gahan-MG"]
[Result "0-1"]
[WhiteElo "2329"]
[BlackElo "2660"]
[TimeControl "180+2"]
[EndTime "13:06:40 PDT"]
[Termination "Gahan-MG won by checkmate"]

1. e4 {[%clk 0:03:01.9]} 1... c5 {[%clk 0:02:59.7]} 2. Nf3 {[%clk 0:03:02.4]}
2... e6 {[%clk 0:03:00.5]} 3. d4 {[%clk 0:03:02]} 3... cxd4 {[%clk 0:03:02.4]}
4. Nxd4 {[%clk 0:03:03.6]} 4... a6 {[%clk 0:03:03.2]} 5. Bd3 {[%clk 0:02:56.1]}
5... Nf6 {[%clk 0:03:03.6]} 6. O-O {[%clk 0:02:56.7]} 6... Qc7 {[%clk
0:03:04.5]} 7. Qe2 {[%clk 0:02:57.6]} 7... d6 {[%clk 0:03:05.1]} 8. c4 {[%clk
0:02:58.6]} 8... Be7 {[%clk 0:03:05.4]} 9. Nc3 {[%clk 0:02:57.8]} 9... Nbd7
{[%clk 0:03:06.5]} 10. Be3 {[%clk 0:02:51.1]} 10... b6 {[%clk 0:03:06.9]} 11. f3
{[%clk 0:02:52]} 11... Bb7 {[%clk 0:03:07.7]} 12. Rac1 {[%clk 0:02:52.1]} 12...
Rc8 {[%clk 0:03:08.8]} 13. b3 {[%clk 0:02:53.1]} 13... Qb8 {[%clk 0:03:09]} 14.
Rfd1 {[%clk 0:02:53.6]} 14... Bd8 {[%clk 0:03:07.7]} 15. Kh1 {[%clk 0:02:52.8]}
15... Bc7 {[%clk 0:03:07.5]} 16. Bg1 {[%clk 0:02:52.7]} 16... h5 {[%clk
0:03:06.7]} 17. b4 {[%clk 0:02:23.7]} 17... h4 {[%clk 0:03:06.6]} 18. a4 {[%clk
0:01:54.7]} 18... Nh5 {[%clk 0:03:01.9]} 19. Qd2 {[%clk 0:01:41.8]} 19... Ng3+
{[%clk 0:02:44.9]} 20. hxg3 {[%clk 0:01:42.4]} 20... hxg3+ {[%clk 0:02:46.8]}
21. Bh2 {[%clk 0:01:43.9]} 21... Rxh2+ {[%clk 0:02:48]} 22. Kg1 {[%clk
0:01:45.4]} 22... d5 {[%clk 0:02:30.6]} 23. exd5 {[%clk 0:01:35.5]} 23... Bf4
{[%clk 0:02:30.1]} 24. Qe2 {[%clk 0:01:35]} 24... e5 {[%clk 0:01:29.3]} 25. Nf5
{[%clk 0:01:21.7]} 25... g6 {[%clk 0:01:28.9]} 26. Ne3 {[%clk 0:01:19.6]} 26...
Ke7 {[%clk 0:01:25.1]} 27. Ng4 {[%clk 0:01:06.8]} 27... Rch8 {[%clk 0:01:15.5]}
28. d6+ {[%clk 0:01:04.9]} 28... Ke6 {[%clk 0:01:08]} 29. Nxh2 {[%clk
0:00:53.6]} 29... Rxh2 {[%clk 0:01:09.9]} 30. Nd5 {[%clk 0:00:53.2]} 30... Rh1+
{[%clk 0:01:05.9]} 31. Kxh1 {[%clk 0:00:47.3]} 31... Qh8+ {[%clk 0:01:06.9]} 32.
Kg1 {[%clk 0:00:48.7]} 32... Qh2+ {[%clk 0:01:07.8]} 33. Kf1 {[%clk 0:00:50.4]}
33... Qh1# {[%clk 0:01:09.1]} 0-1

[Event "*** Titled Tuesday Blitz"]
[Site "Chess.com"]
[Date "2019.06.04"]
[Round "1"]
[White "Sebastian"]
[Black "Mikhail_Golubev"]
[Result "1-0"]
[WhiteElo "2902"]
[BlackElo "2481"]
[TimeControl "180+2"]
[EndTime "13:06:41 PDT"]
[Termination "Sebastian won on time"]

1. e4 {[%clk 0:03:01.9]} 1... c5 {[%clk 0:02:59.3]} 2. Nf3 {[%clk 0:03:02.5]}
2... d6 {[%clk 0:03:00]} 3. d4 {[%clk 0:03:02.1]} 3... Nf6 {[%clk 0:03:00.1]} 4.
Nc3 {[%clk 0:03:02.7]} 4... cxd4 {[%clk 0:03:00.6]} 5. Nxd4 {[%clk 0:03:04.6]}
5... g6 {[%clk 0:03:00.9]} 6. Be3 {[%clk 0:03:04.8]} 6... Bg7 {[%clk 0:03:01.5]}
7. f3 {[%clk 0:03:06.2]} 7... O-O {[%clk 0:03:01.5]} 8. Qd2 {[%clk 0:03:07.8]}
8... Nc6 {[%clk 0:03:02]} 9. O-O-O {[%clk 0:03:09.5]} 9... d5 {[%clk 0:03:02]}
10. Qe1 {[%clk 0:03:11]} 10... e5 {[%clk 0:02:59.3]} 11. Nxc6 {[%clk 0:03:12]}
11... bxc6 {[%clk 0:02:59.8]} 12. exd5 {[%clk 0:03:13.6]} 12... Nxd5 {[%clk
0:03:00]} 13. Bc4 {[%clk 0:03:13.6]} 13... Be6 {[%clk 0:02:59.4]} 14. Kb1 {[%clk
0:03:15.2]} 14... Re8 {[%clk 0:02:51.9]} 15. Ne4 {[%clk 0:03:15.4]} 15... f5
{[%clk 0:02:51.4]} 16. Ng5 {[%clk 0:03:16.5]} 16... Bc8 {[%clk 0:02:51.4]} 17.
h4 {[%clk 0:03:18.1]} 17... Rb8 {[%clk 0:02:43.9]} 18. Bxa7 {[%clk 0:02:57.9]}
18... Rb7 {[%clk 0:02:12.7]} 19. Bc5 {[%clk 0:02:58.7]} 19... e4 {[%clk
0:01:48.9]} 20. Bb3 {[%clk 0:02:59.1]} 20... h6 {[%clk 0:01:38.9]} 21. Nh3
{[%clk 0:02:51.9]} 21... exf3 {[%clk 0:01:35.3]} 22. Qg3 {[%clk 0:02:52.5]}
22... fxg2 {[%clk 0:00:47.3]} 23. Qxg2 {[%clk 0:02:52.5]} 23... Kh7 {[%clk
0:00:43.2]} 24. Rhg1 {[%clk 0:02:30.2]} 24... Qf6 {[%clk 0:00:27.1]} 25. Bd4
{[%clk 0:02:30.4]} 25... Qf7 {[%clk 0:00:17.4]} 26. Bxg7 {[%clk 0:02:28]} 26...
Qxg7 {[%clk 0:00:12.2]} 27. Qh2 {[%clk 0:02:07.1]} 27... Ne3 {[%clk 0:00:10.6]}
28. Ng5+ {[%clk 0:01:50.7]} 28... Kh8 {[%clk 0:00:09.4]} 29. Rde1 {[%clk
0:01:52.3]} 29... Qd4 {[%clk 0:00:03.2]} 30. Nf7+ {[%clk 0:01:47.8]} 30... Kh7
{[%clk 0:00:02.4]} 31. Qg3 {[%clk 0:01:35.2]} 1-0